[Event "*** Titled Tuesday Blitz"]
[Site "Chess.com"]
[Date "2021.02.09"]
[Round "3"]
[White "kakorrhaphiophobie"]
[Black "Khnykin_Nikolay"]
[Result "1-0"]
[WhiteElo "2315"]
[BlackElo "2061"]
[TimeControl "180+1"]
[EndTime "10:28:51 PST"]
[Termination "kakorrhaphiophobie won on time"]

1. d4 {[%clk 0:02:57]} 1... Nf6 {[%clk 0:02:06.6]} 2. c4 {[%clk 0:02:55.9]} 2...
c5 {[%clk 0:02:05.6]} 3. d5 {[%clk 0:02:56]} 3... b5 {[%clk 0:02:05.5]} 4. cxb5
{[%clk 0:02:56.9]} 4... a6 {[%clk 0:02:05.7]} 5. bxa6 {[%clk 0:02:57.3]} 5...
Bxa6 {[%clk 0:02:05.8]} 6. Nc3 {[%clk 0:02:56.7]} 6... e6 {[%clk 0:02:05.2]} 7.
g3 {[%clk 0:02:15.1]} 7... d6 {[%clk 0:01:47.9]} 8. Bg2 {[%clk 0:01:57.1]} 8...
Bb7 {[%clk 0:01:45.7]} 9. Nh3 {[%clk 0:01:50.7]} 9... Be7 {[%clk 0:01:40.4]} 10.
O-O {[%clk 0:01:50.3]} 10... Qd7 {[%clk 0:01:37.4]} 11. dxe6 {[%clk 0:01:45.7]}
11... fxe6 {[%clk 0:01:34.8]} 12. Bxb7 {[%clk 0:01:45.2]} 12... Qxb7 {[%clk
0:01:32.7]} 13. Nf4 {[%clk 0:01:43.2]} 13... Qd7 {[%clk 0:01:15.5]} 14. e4
{[%clk 0:01:32.6]} 14... O-O {[%clk 0:01:10.4]} 15. Qb3 {[%clk 0:01:30.8]} 15...
Kf7 {[%clk 0:00:56.1]} 16. e5 {[%clk 0:01:11.1]} 16... dxe5 {[%clk 0:00:48.2]}
17. Rd1 {[%clk 0:01:10.9]} 17... Qc6 {[%clk 0:00:40.7]} 18. Nd3 {[%clk
0:01:07.5]} 18... Bd6 {[%clk 0:00:32.8]} 19. Qc4 {[%clk 0:00:41.1]} 19... Nbd7
{[%clk 0:00:24.9]} 20. Be3 {[%clk 0:00:34.6]} 20... Nb6 {[%clk 0:00:23.1]} 21.
Qb5 {[%clk 0:00:34.9]} 21... Qxb5 {[%clk 0:00:19.1]} 22. Nxb5 {[%clk 0:00:34.8]}
22... Bb8 {[%clk 0:00:17.1]} 23. Bxc5 {[%clk 0:00:32.3]} 23... Re8 {[%clk
0:00:16.8]} 24. Bxb6 {[%clk 0:00:31.6]} 24... Ra6 {[%clk 0:00:14.1]} 25. Be3
{[%clk 0:00:28.2]} 25... Rc6 {[%clk 0:00:13.1]} 26. Rdc1 {[%clk 0:00:25.9]}
26... Rec8 {[%clk 0:00:11.4]} 27. Rxc6 {[%clk 0:00:26.5]} 27... Rxc6 {[%clk
0:00:11.1]} 28. Rc1 {[%clk 0:00:27.2]} 28... Rxc1+ {[%clk 0:00:10.7]} 29. Nxc1
{[%clk 0:00:26]} 29... e4 {[%clk 0:00:10.4]} 30. a4 {[%clk 0:00:25.3]} 30... Nd7
{[%clk 0:00:08.4]} 31. b3 {[%clk 0:00:24.3]} 31... Ke8 {[%clk 0:00:05.4]} 32.
Ne2 {[%clk 0:00:21.5]} 32... Kd8 {[%clk 0:00:05]} 33. Nec3 {[%clk 0:00:22]}
33... Nf6 {[%clk 0:00:02.3]} 34. Kf1 {[%clk 0:00:22.4]} 34... Kc8 {[%clk
0:00:02.2]} 35. Bd4 {[%clk 0:00:22.4]} 1-0

[Event "*** Titled Tuesday Blitz"]
[Site "Chess.com"]
[Date "2021.02.09"]
[Round "3"]
[White "Rsnr"]
[Black "CheckThis4"]
[Result "1/2-1/2"]
[WhiteElo "2767"]
[BlackElo "2587"]
[TimeControl "180+1"]
[EndTime "10:28:52 PST"]
[Termination "Game drawn by agreement"]

1. d4 {[%clk 0:03:00.9]} 1... e6 {[%clk 0:02:56.6]} 2. c4 {[%clk 0:03:00.3]}
2... f5 {[%clk 0:02:56.7]} 3. Nc3 {[%clk 0:02:50.6]} 3... Nf6 {[%clk 0:02:56.5]}
4. Qc2 {[%clk 0:02:47.7]} 4... Bb4 {[%clk 0:02:52.8]} 5. e3 {[%clk 0:02:48.1]}
5... O-O {[%clk 0:02:51.6]} 6. Bd3 {[%clk 0:02:47.9]} 6... b6 {[%clk 0:02:50.7]}
7. Ne2 {[%clk 0:02:48.4]} 7... Bb7 {[%clk 0:02:50.6]} 8. f3 {[%clk 0:02:49.1]}
8... c5 {[%clk 0:02:49.7]} 9. a3 {[%clk 0:02:48.3]} 9... Bxc3+ {[%clk
0:02:41.8]} 10. Qxc3 {[%clk 0:02:49.2]} 10... Nc6 {[%clk 0:02:37.7]} 11. O-O
{[%clk 0:02:49]} 11... Qe7 {[%clk 0:02:32.2]} 12. b3 {[%clk 0:02:43.9]} 12...
Rac8 {[%clk 0:02:22.5]} 13. Bb2 {[%clk 0:02:43.5]} 13... d5 {[%clk 0:02:12.4]}
14. dxc5 {[%clk 0:02:09.6]} 14... Qxc5 {[%clk 0:01:59.9]} 15. Nd4 {[%clk
0:02:10.1]} 15... dxc4 {[%clk 0:01:18.8]} 16. Bxc4 {[%clk 0:02:11]} 16... Nxd4
{[%clk 0:01:13.3]} 17. Qxd4 {[%clk 0:02:06]} 17... Kf7 {[%clk 0:01:01.1]} 18.
Rfd1 {[%clk 0:01:21.5]} 18... Qxd4 {[%clk 0:00:57.8]} 19. Bxd4 {[%clk
0:01:22.4]} 19... Rfd8 {[%clk 0:00:55.4]} 20. Kf2 {[%clk 0:01:18.4]} 20... Bd5
{[%clk 0:00:53.4]} 21. Ba6 {[%clk 0:01:16.9]} 21... Rc2+ {[%clk 0:00:49.1]} 22.
Kg3 {[%clk 0:01:16.8]} 22... Bxb3 {[%clk 0:00:32.4]} 23. Bxf6 {[%clk 0:01:16.2]}
23... Rxd1 {[%clk 0:00:31.9]} 24. Rxd1 {[%clk 0:01:17.1]} 24... gxf6 {[%clk
0:00:29.4]} 25. Rd7+ {[%clk 0:01:16.8]} 25... Kg6 {[%clk 0:00:29]} 26. Rxa7
{[%clk 0:01:13]} 26... Rc3 {[%clk 0:00:26.4]} 27. Kf2 {[%clk 0:00:43.6]} 27...
Rc2+ {[%clk 0:00:25.6]} 28. Kg3 {[%clk 0:00:44.3]} 28... Rc3 {[%clk 0:00:25.9]}
29. Bb5 {[%clk 0:00:24.2]} 29... Rxe3 {[%clk 0:00:23]} 30. a4 {[%clk 0:00:24.8]}
30... e5 {[%clk 0:00:21.1]} 31. Be8+ {[%clk 0:00:23.3]} 31... Kh6 {[%clk
0:00:21.3]} 32. Bd7 {[%clk 0:00:23.3]} 32... f4+ {[%clk 0:00:19]} 33. Kh3 {[%clk
0:00:16.6]} 33... Rd3 {[%clk 0:00:16.6]} 34. Bb5 {[%clk 0:00:15.5]} 34... Be6+
{[%clk 0:00:15.2]} 35. Kh4 {[%clk 0:00:13.7]} 35... Rd8 {[%clk 0:00:15.4]} 36.
Rb7 {[%clk 0:00:10.2]} 36... Rd6 {[%clk 0:00:15.3]} 1/2-1/2

[Event "*** Titled Tuesday Blitz"]
[Site "Chess.com"]
[Date "2021.02.09"]
[Round "3"]
[White "vugarrasulov"]
[Black "djano"]
[Result "1-0"]
[WhiteElo "2752"]
[BlackElo "2478"]
[TimeControl "180+1"]
[EndTime "10:28:52 PST"]
[Termination "vugarrasulov won by resignation"]

1. e4 {[%clk 0:03:00.9]} 1... c5 {[%clk 0:02:59.6]} 2. Nf3 {[%clk 0:03:01]} 2...
Nc6 {[%clk 0:02:59.7]} 3. d4 {[%clk 0:03:00.9]} 3... cxd4 {[%clk 0:03:00.6]} 4.
Nxd4 {[%clk 0:03:01.6]} 4... g6 {[%clk 0:03:00.8]} 5. Nc3 {[%clk 0:02:59.8]}
5... Bg7 {[%clk 0:03:00.7]} 6. Be3 {[%clk 0:02:59.8]} 6... Nf6 {[%clk
0:03:00.3]} 7. Bc4 {[%clk 0:02:59.4]} 7... O-O {[%clk 0:02:59.9]} 8. Bb3 {[%clk
0:02:59.5]} 8... Re8 {[%clk 0:03:00.1]} 9. f3 {[%clk 0:02:55.8]} 9... e6 {[%clk
0:02:58.9]} 10. f4 {[%clk 0:02:56.1]} 10... e5 {[%clk 0:02:39.3]} 11. fxe5
{[%clk 0:02:48.3]} 11... Nxe5 {[%clk 0:02:40.2]} 12. O-O {[%clk 0:02:46.6]}
12... Neg4 {[%clk 0:02:38.2]} 13. Bg5 {[%clk 0:02:35.5]} 13... h6 {[%clk
0:02:26.6]} 14. Bh4 {[%clk 0:02:27.1]} 14... Ne3 {[%clk 0:02:10.5]} 15. Qf3
{[%clk 0:02:19.5]} 15... Nxf1 {[%clk 0:02:08.4]} 16. Rxf1 {[%clk 0:02:20.4]}
16... g5 {[%clk 0:02:08.5]} 17. Bg3 {[%clk 0:02:16.5]} 17... Qb6 {[%clk
0:01:35.7]} 18. Bf2 {[%clk 0:02:12.8]} 18... d5 {[%clk 0:01:16]} 19. Nf5 {[%clk
0:02:12.5]} 19... dxe4 {[%clk 0:01:08.7]} 20. Nxe4 {[%clk 0:02:06.4]} 20... Bxf5
{[%clk 0:01:07.3]} 21. Bxb6 {[%clk 0:01:31.4]} 21... Bxe4 {[%clk 0:01:06.3]} 22.
Qc3 {[%clk 0:01:32]} 22... Nd5 {[%clk 0:00:24.4]} 23. Qh3 {[%clk 0:01:17.2]}
23... axb6 {[%clk 0:00:22.7]} 24. Qd7 {[%clk 0:01:16.6]} 24... Re7 {[%clk
0:00:20.9]} 25. Qd6 {[%clk 0:01:03.1]} 25... Bd4+ {[%clk 0:00:18.7]} 26. Kh1
{[%clk 0:01:02.5]} 26... Re6 {[%clk 0:00:15.6]} 27. Qd7 {[%clk 0:00:52.3]} 27...
Re7 {[%clk 0:00:14.1]} 28. Qd6 {[%clk 0:00:50.2]} 28... Re6 {[%clk 0:00:14.4]}
29. Qg3 {[%clk 0:00:47.2]} 29... Nf4 {[%clk 0:00:13.4]} 30. Rxf4 {[%clk
0:00:45]} 30... Be5 {[%clk 0:00:09.5]} 31. Bxe6 {[%clk 0:00:38.1]} 31... fxe6
{[%clk 0:00:07]} 32. Qb3 {[%clk 0:00:35.9]} 32... Bd5 {[%clk 0:00:05.4]} 33. c4
{[%clk 0:00:35.7]} 33... Bxf4 {[%clk 0:00:05]} 34. cxd5 {[%clk 0:00:36]} 34...
Rc8 {[%clk 0:00:03.5]} 35. g3 {[%clk 0:00:36.4]} 35... Bd6 {[%clk 0:00:02]} 36.
dxe6 {[%clk 0:00:36.6]} 36... Be7 {[%clk 0:00:02.6]} 37. Qxb6 {[%clk 0:00:36.2]}
37... Rc1+ {[%clk 0:00:03]} 38. Kg2 {[%clk 0:00:36.5]} 38... Rc2+ {[%clk
0:00:03.9]} 39. Kf3 {[%clk 0:00:36.9]} 39... Bf6 {[%clk 0:00:03.6]} 40. Qxb7
{[%clk 0:00:35.9]} 40... Rxb2 {[%clk 0:00:03.8]} 41. Qf7+ {[%clk 0:00:36]} 1-0

[Event "*** Titled Tuesday Blitz"]
[Site "Chess.com"]
[Date "2021.02.09"]
[Round "3"]
[White "mapleaff"]
[Black "DamianoLew95"]
[Result "0-1"]
[WhiteElo "2402"]
[BlackElo "2592"]
[TimeControl "180+1"]
[EndTime "10:28:53 PST"]
[Termination "DamianoLew95 won on time"]

1. e4 {[%clk 0:03:00.9]} 1... c5 {[%clk 0:02:58.4]} 2. Nf3 {[%clk 0:03:01.3]}
2... d6 {[%clk 0:02:58.4]} 3. d4 {[%clk 0:02:59.7]} 3... cxd4 {[%clk 0:02:59.3]}
4. Nxd4 {[%clk 0:03:00.5]} 4... Nf6 {[%clk 0:02:59.3]} 5. Nc3 {[%clk 0:03:01]}
5... Nc6 {[%clk 0:03:00]} 6. Bg5 {[%clk 0:02:59.4]} 6... e6 {[%clk 0:03:00.5]}
7. Qd2 {[%clk 0:02:58.2]} 7... a6 {[%clk 0:03:01.1]} 8. O-O-O {[%clk 0:02:57.9]}
8... Bd7 {[%clk 0:03:01.6]} 9. Bxf6 {[%clk 0:02:56.8]} 9... Qxf6 {[%clk
0:02:59.2]} 10. Nb3 {[%clk 0:02:34.8]} 10... Be7 {[%clk 0:02:55.6]} 11. Nc5
{[%clk 0:02:26.4]} 11... Bc8 {[%clk 0:02:28.3]} 12. N5a4 {[%clk 0:02:20]} 12...
O-O {[%clk 0:02:17.4]} 13. Nb6 {[%clk 0:02:17.6]} 13... Rb8 {[%clk 0:02:17.9]}
14. f4 {[%clk 0:01:59.2]} 14... Rd8 {[%clk 0:02:00.9]} 15. g4 {[%clk 0:01:56.9]}
15... g5 {[%clk 0:01:59.3]} 16. f5 {[%clk 0:01:51.2]} 16... Qe5 {[%clk
0:01:51.4]} 17. Bc4 {[%clk 0:01:40.5]} 17... Qc5 {[%clk 0:01:27.9]} 18. Nxc8
{[%clk 0:01:35.6]} 18... Rbxc8 {[%clk 0:01:27.8]} 19. Bb3 {[%clk 0:01:22]} 19...
Na5 {[%clk 0:01:25.5]} 20. Rhf1 {[%clk 0:01:09.2]} 20... Nxb3+ {[%clk
0:01:17.2]} 21. axb3 {[%clk 0:01:07.1]} 21... Qe5 {[%clk 0:01:11.7]} 22. h4
{[%clk 0:01:00.4]} 22... h6 {[%clk 0:01:00.1]} 23. h5 {[%clk 0:00:22.7]} 23...
b5 {[%clk 0:00:53.3]} 24. Qf2 {[%clk 0:00:11.2]} 24... Qf4+ {[%clk 0:00:45.1]}
25. Qxf4 {[%clk 0:00:10.3]} 25... gxf4 {[%clk 0:00:46]} 26. fxe6 {[%clk
0:00:05.8]} 26... fxe6 {[%clk 0:00:45.6]} 27. e5 {[%clk 0:00:06.2]} 27... dxe5
{[%clk 0:00:26.4]} 28. Ne4 {[%clk 0:00:05.8]} 28... Rxd1+ {[%clk 0:00:16.2]} 29.
Kxd1 {[%clk 0:00:03.9]} 29... Kf7 {[%clk 0:00:15.4]} 30. c3 {[%clk 0:00:02.3]}
30... a5 {[%clk 0:00:14.7]} 31. Kc2 {[%clk 0:00:01.7]} 31... a4 {[%clk
0:00:13.5]} 32. bxa4 {[%clk 0:00:01.3]} 32... bxa4 {[%clk 0:00:14.4]} 33. Ra1
{[%clk 0:00:01.4]} 33... Ra8 {[%clk 0:00:14.5]} 0-1

[Event "*** Titled Tuesday Blitz"]
[Site "Chess.com"]
[Date "2021.02.09"]
[Round "3"]
[White "Eternauta2400"]
[Black "Supernotar"]
[Result "0-1"]
[WhiteElo "2386"]
[BlackElo "2791"]
[TimeControl "180+1"]
[EndTime "10:28:53 PST"]
[Termination "Supernotar won on time"]

1. e4 {[%clk 0:03:00.9]} 1... c6 {[%clk 0:02:59.4]} 2. d4 {[%clk 0:02:59.6]}
2... d5 {[%clk 0:02:59.5]} 3. Nc3 {[%clk 0:03:00.3]} 3... dxe4 {[%clk
0:02:59.5]} 4. Nxe4 {[%clk 0:03:01.2]} 4... Bf5 {[%clk 0:02:59.8]} 5. Ng3 {[%clk
0:03:01.6]} 5... Bg6 {[%clk 0:03:00.1]} 6. h4 {[%clk 0:03:02.3]} 6... h6 {[%clk
0:03:00.1]} 7. h5 {[%clk 0:03:03.2]} 7... Bh7 {[%clk 0:03:00.3]} 8. Nf3 {[%clk
0:03:03.7]} 8... Nd7 {[%clk 0:03:00.5]} 9. Bd3 {[%clk 0:03:04.3]} 9... Bxd3
{[%clk 0:03:00.3]} 10. Qxd3 {[%clk 0:03:05.2]} 10... e6 {[%clk 0:03:00.9]} 11.
Bd2 {[%clk 0:03:04.3]} 11... Ngf6 {[%clk 0:03:01.3]} 12. O-O-O {[%clk
0:03:04.8]} 12... Be7 {[%clk 0:03:01.9]} 13. Ne4 {[%clk 0:03:02.9]} 13... Nxe4
{[%clk 0:03:01.8]} 14. Qxe4 {[%clk 0:03:03.8]} 14... Nf6 {[%clk 0:03:02.4]} 15.
Qe2 {[%clk 0:03:04.3]} 15... Qd5 {[%clk 0:03:03.3]} 16. Kb1 {[%clk 0:02:59]}
16... Qe4 {[%clk 0:02:59.7]} 17. Rde1 {[%clk 0:02:44.4]} 17... Qxe2 {[%clk
0:02:56.4]} 18. Rxe2 {[%clk 0:02:45.3]} 18... O-O {[%clk 0:02:52.8]} 19. Ne5
{[%clk 0:02:37.4]} 19... Rad8 {[%clk 0:02:50.9]} 20. c3 {[%clk 0:02:25.4]} 20...
Nd7 {[%clk 0:02:49]} 21. g4 {[%clk 0:01:56.4]} 21... Nxe5 {[%clk 0:02:48.3]} 22.
Rxe5 {[%clk 0:01:56.3]} 22... Rd5 {[%clk 0:02:44.9]} 23. Rhe1 {[%clk 0:01:48.3]}
23... Rfd8 {[%clk 0:02:44.2]} 24. Kc2 {[%clk 0:01:43.7]} 24... Bf6 {[%clk
0:02:41]} 25. Rxd5 {[%clk 0:01:26.4]} 25... Rxd5 {[%clk 0:02:34.6]} 26. Be3
{[%clk 0:01:05.1]} 26... Kf8 {[%clk 0:02:32.6]} 27. b3 {[%clk 0:01:01.2]} 27...
Ke8 {[%clk 0:02:31.7]} 28. f3 {[%clk 0:00:57.1]} 28... Rd7 {[%clk 0:02:30.3]}
29. Bf2 {[%clk 0:00:53.5]} 29... Be7 {[%clk 0:02:26.6]} 30. b4 {[%clk
0:00:46.7]} 30... Rd8 {[%clk 0:02:23.1]} 31. a3 {[%clk 0:00:39.6]} 31... b5
{[%clk 0:02:22.4]} 32. Bg3 {[%clk 0:00:34]} 32... Kd7 {[%clk 0:02:20.6]} 33. Kb3
{[%clk 0:00:28.8]} 33... a5 {[%clk 0:02:17.5]} 34. Kc2 {[%clk 0:00:17.5]} 34...
Ra8 {[%clk 0:02:16.6]} 35. Kb2 {[%clk 0:00:15.9]} 35... a4 {[%clk 0:02:06.1]}
36. Re2 {[%clk 0:00:15.3]} 36... Rf8 {[%clk 0:02:03.7]} 37. Be5 {[%clk
0:00:12.7]} 37... f6 {[%clk 0:02:02.6]} 38. Bg3 {[%clk 0:00:12.8]} 38... f5
{[%clk 0:01:59.3]} 39. Rf2 {[%clk 0:00:11.4]} 39... Bd6 {[%clk 0:01:56.3]} 40.
Bxd6 {[%clk 0:00:10.6]} 40... Kxd6 {[%clk 0:01:57.2]} 41. Rg2 {[%clk 0:00:10.3]}
41... fxg4 {[%clk 0:01:54.7]} 42. Rxg4 {[%clk 0:00:05.8]} 42... Rxf3 {[%clk
0:01:52.6]} 43. Rxg7 {[%clk 0:00:05.4]} 43... Rf2+ {[%clk 0:01:51.1]} 44. Kc1
{[%clk 0:00:04.9]} 44... Kd5 {[%clk 0:01:47]} 45. Rg6 {[%clk 0:00:04.3]} 45...
Kc4 {[%clk 0:01:46.8]} 46. Rxe6 {[%clk 0:00:04.2]} 46... Kxc3 {[%clk 0:01:43.9]}
47. Rxc6+ {[%clk 0:00:04.3]} 47... Kb3 {[%clk 0:01:38.8]} 48. Rxh6 {[%clk
0:00:04.8]} 48... Kxa3 {[%clk 0:01:37.9]} 49. Rb6 {[%clk 0:00:05.4]} 49... Kxb4
{[%clk 0:01:33.9]} 50. h6 {[%clk 0:00:05.5]} 50... Rh2 {[%clk 0:01:33.2]} 51. d5
{[%clk 0:00:04.3]} 51... a3 {[%clk 0:01:33.3]} 52. Ra6 {[%clk 0:00:04.5]} 52...
Kb3 {[%clk 0:01:30.1]} 53. Ra5 {[%clk 0:00:01.9]} 53... b4 {[%clk 0:01:29.2]}
54. d6 {[%clk 0:00:01.4]} 54... Rxh6 {[%clk 0:01:21.6]} 55. d7 {[%clk
0:00:02.3]} 55... Rd6 {[%clk 0:01:20.8]} 56. Ra7 {[%clk 0:00:02.1]} 56... Ka2
{[%clk 0:01:09.9]} 0-1

[Event "*** Titled Tuesday Blitz"]
[Site "Chess.com"]
[Date "2021.02.09"]
[Round "3"]
[White "Nils_03"]
[Black "azikom"]
[Result "0-1"]
[WhiteElo "2326"]
[BlackElo "2647"]
[TimeControl "180+1"]
[EndTime "10:28:55 PST"]
[Termination "azikom won by resignation"]

1. e4 {[%clk 0:02:56.5]} 1... c5 {[%clk 0:02:58.6]} 2. f4 {[%clk 0:02:56.8]}
2... d6 {[%clk 0:02:59.2]} 3. Nf3 {[%clk 0:02:56.3]} 3... g6 {[%clk 0:02:58.8]}
4. Bb5+ {[%clk 0:02:55.1]} 4... Bd7 {[%clk 0:02:58.6]} 5. Bxd7+ {[%clk
0:02:55.2]} 5... Nxd7 {[%clk 0:02:59]} 6. O-O {[%clk 0:02:55.8]} 6... Bg7 {[%clk
0:02:59.5]} 7. d3 {[%clk 0:02:55.3]} 7... Ngf6 {[%clk 0:02:59.4]} 8. Nc3 {[%clk
0:02:54.7]} 8... O-O {[%clk 0:02:58.9]} 9. Kh1 {[%clk 0:02:55.3]} 9... Rb8
{[%clk 0:02:58.8]} 10. a4 {[%clk 0:02:54.5]} 10... a6 {[%clk 0:02:58.6]} 11. f5
{[%clk 0:02:50.9]} 11... b5 {[%clk 0:02:58.6]} 12. axb5 {[%clk 0:02:51.8]} 12...
axb5 {[%clk 0:02:58.4]} 13. Ne2 {[%clk 0:02:40]} 13... c4 {[%clk 0:02:58]} 14.
Bd2 {[%clk 0:02:32.7]} 14... cxd3 {[%clk 0:02:57.5]} 15. cxd3 {[%clk 0:02:33.6]}
15... Qb6 {[%clk 0:02:53.1]} 16. Bc3 {[%clk 0:02:26.7]} 16... b4 {[%clk
0:02:52.5]} 17. Bd4 {[%clk 0:02:26.7]} 17... Qb5 {[%clk 0:02:52.9]} 18. fxg6
{[%clk 0:02:24.4]} 18... hxg6 {[%clk 0:02:52.1]} 19. Qd2 {[%clk 0:02:16.1]}
19... Rfc8 {[%clk 0:02:45.5]} 20. Rfc1 {[%clk 0:02:07.3]} 20... Nc5 {[%clk
0:02:38.7]} 21. Bxc5 {[%clk 0:01:54.5]} 21... Rxc5 {[%clk 0:02:37.8]} 22. Rxc5
{[%clk 0:01:53.4]} 22... Qxc5 {[%clk 0:02:35.9]} 23. Rc1 {[%clk 0:01:50.8]}
23... Qf2 {[%clk 0:02:31.1]} 24. Qe1 {[%clk 0:01:28.7]} 24... Qe3 {[%clk
0:02:29.6]} 25. Qd2 {[%clk 0:01:26.9]} 25... Qf2 {[%clk 0:02:23.8]} 26. Qe1
{[%clk 0:01:26.7]} 26... Ng4 {[%clk 0:02:23.5]} 27. h3 {[%clk 0:01:15.9]} 27...
Qxe1+ {[%clk 0:02:22.8]} 28. Nxe1 {[%clk 0:01:16.8]} 28... Ne5 {[%clk
0:01:56.8]} 29. Rc7 {[%clk 0:01:03.6]} 29... Ra8 {[%clk 0:01:46.1]} 30. Kh2
{[%clk 0:01:01.1]} 30... Ra1 {[%clk 0:01:38.9]} 31. Rc1 {[%clk 0:00:55.1]} 31...
Rxc1 {[%clk 0:01:37.4]} 32. Nxc1 {[%clk 0:00:56]} 32... Nc6 {[%clk 0:01:37.8]}
33. b3 {[%clk 0:00:50]} 33... Bc3 {[%clk 0:01:36.1]} 34. Nc2 {[%clk 0:00:22]}
34... e6 {[%clk 0:01:26]} 35. Kg3 {[%clk 0:00:20.4]} 35... Kg7 {[%clk
0:01:24.1]} 36. Kf2 {[%clk 0:00:20.7]} 36... f5 {[%clk 0:01:23.1]} 37. exf5
{[%clk 0:00:20]} 37... exf5 {[%clk 0:01:23.2]} 38. Ke2 {[%clk 0:00:13.5]} 38...
Kf6 {[%clk 0:01:23.3]} 39. Na2 {[%clk 0:00:13.1]} 39... Ke5 {[%clk 0:01:23.4]}
40. Nxc3 {[%clk 0:00:12.8]} 40... bxc3 {[%clk 0:01:23.6]} 41. g4 {[%clk
0:00:09.9]} 41... fxg4 {[%clk 0:01:22.4]} 42. hxg4 {[%clk 0:00:10.8]} 42... d5
{[%clk 0:01:22.5]} 43. Ke3 {[%clk 0:00:09.5]} 43... d4+ {[%clk 0:01:22.4]} 44.
Kf3 {[%clk 0:00:09.9]} 44... Na7 {[%clk 0:01:21.8]} 45. b4 {[%clk 0:00:07.4]}
45... Nb5 {[%clk 0:01:21.7]} 46. Ne1 {[%clk 0:00:04.2]} 46... Na3 {[%clk
0:01:21.3]} 47. Ke2 {[%clk 0:00:03.4]} 47... Kf4 {[%clk 0:01:19.2]} 48. Kd1
{[%clk 0:00:03.3]} 48... Kxg4 {[%clk 0:01:13.2]} 49. Nc2 {[%clk 0:00:04.2]}
49... Nb5 {[%clk 0:01:12.7]} 50. Ke2 {[%clk 0:00:03.3]} 50... Kf4 {[%clk
0:01:13]} 51. Kf2 {[%clk 0:00:03.2]} 51... g5 {[%clk 0:01:13.1]} 52. Kg2 {[%clk
0:00:03.7]} 52... g4 {[%clk 0:01:13.7]} 53. Kf2 {[%clk 0:00:04.3]} 53... g3+
{[%clk 0:01:13.7]} 54. Kg2 {[%clk 0:00:04.8]} 54... Kg4 {[%clk 0:01:14.4]} 55.
Ne1 {[%clk 0:00:04.2]} 55... Na3 {[%clk 0:01:14.3]} 56. Nf3 {[%clk 0:00:04.7]}
56... c2 {[%clk 0:01:13.1]} 0-1

[Event "*** Titled Tuesday Blitz"]
[Site "Chess.com"]
[Date "2021.02.09"]
[Round "3"]
[White "DinaBelenkaya"]
[Black "chessasuke"]
[Result "0-1"]
[WhiteElo "2369"]
[BlackElo "2554"]
[TimeControl "180+1"]
[EndTime "10:28:56 PST"]
[Termination "chessasuke won on time"]

1. e4 {[%clk 0:03:00.9]} 1... e6 {[%clk 0:02:58.7]} 2. Qe2 {[%clk 0:02:59.4]}
2... c5 {[%clk 0:02:58.2]} 3. Nf3 {[%clk 0:02:58.4]} 3... Nc6 {[%clk 0:02:59.1]}
4. g3 {[%clk 0:02:58.6]} 4... g6 {[%clk 0:02:59.7]} 5. Bg2 {[%clk 0:02:58.1]}
5... Bg7 {[%clk 0:03:00.3]} 6. c3 {[%clk 0:02:57.9]} 6... Nge7 {[%clk
0:03:00.5]} 7. h4 {[%clk 0:02:58.2]} 7... h6 {[%clk 0:03:00.4]} 8. d4 {[%clk
0:02:55.2]} 8... cxd4 {[%clk 0:03:00.1]} 9. cxd4 {[%clk 0:02:56.1]} 9... Nxd4
{[%clk 0:03:00.4]} 10. Nxd4 {[%clk 0:02:57]} 10... Bxd4 {[%clk 0:03:00.8]} 11.
O-O {[%clk 0:02:57.6]} 11... Bg7 {[%clk 0:03:00.1]} 12. Rd1 {[%clk 0:02:57.5]}
12... O-O {[%clk 0:02:58]} 13. Nc3 {[%clk 0:02:58.1]} 13... a6 {[%clk
0:02:56.4]} 14. Bf4 {[%clk 0:02:53.6]} 14... e5 {[%clk 0:02:49.3]} 15. Be3
{[%clk 0:02:52.6]} 15... d6 {[%clk 0:02:48]} 16. Qd2 {[%clk 0:02:52.7]} 16...
Bg4 {[%clk 0:02:45.5]} 17. f3 {[%clk 0:02:50]} 17... Be6 {[%clk 0:02:45.6]} 18.
Qxd6 {[%clk 0:02:31.2]} 18... Nc6 {[%clk 0:02:44.1]} 19. Qxd8 {[%clk 0:01:54]}
19... Rfxd8 {[%clk 0:02:45]} 20. Nd5 {[%clk 0:01:54.4]} 20... Bxd5 {[%clk
0:02:42.9]} 21. exd5 {[%clk 0:01:54.4]} 21... Nb4 {[%clk 0:02:43]} 22. Rac1
{[%clk 0:00:55]} 22... Nxd5 {[%clk 0:02:41.2]} 23. Bf2 {[%clk 0:00:55.3]} 23...
f5 {[%clk 0:02:41.1]} 24. Bf1 {[%clk 0:00:53.8]} 24... Nf6 {[%clk 0:02:21.4]}
25. Bb6 {[%clk 0:00:41.5]} 25... Rxd1 {[%clk 0:02:17]} 26. Rxd1 {[%clk
0:00:42.4]} 26... Rc8 {[%clk 0:02:17]} 27. b3 {[%clk 0:00:38.2]} 27... Kf7
{[%clk 0:02:05.5]} 28. Bc4+ {[%clk 0:00:38.4]} 28... Ke7 {[%clk 0:02:05.7]} 29.
Kf2 {[%clk 0:00:34.8]} 29... Nd7 {[%clk 0:02:01.4]} 30. Ba5 {[%clk 0:00:34.1]}
30... b5 {[%clk 0:01:48.1]} 31. Bb4+ {[%clk 0:00:29.4]} 31... Nc5 {[%clk
0:01:47.4]} 32. Be2 {[%clk 0:00:29.5]} 32... Bf8 {[%clk 0:01:47.2]} 33. Rd5
{[%clk 0:00:29.5]} 33... Ke6 {[%clk 0:01:47.1]} 34. Rd2 {[%clk 0:00:27.3]} 34...
Nd3+ {[%clk 0:01:44.9]} 35. Bxd3 {[%clk 0:00:20.3]} 35... Bxb4 {[%clk
0:01:44.7]} 36. Re2 {[%clk 0:00:20.8]} 36... Bc5+ {[%clk 0:01:43.7]} 37. Kg2
{[%clk 0:00:21.3]} 37... Bd4 {[%clk 0:01:43.5]} 38. g4 {[%clk 0:00:21.6]} 38...
Rc3 {[%clk 0:01:43.4]} 39. gxf5+ {[%clk 0:00:20.6]} 39... gxf5 {[%clk
0:01:43.4]} 40. Bb1 {[%clk 0:00:21]} 40... Be3 {[%clk 0:01:42.6]} 41. Bc2 {[%clk
0:00:16.5]} 41... b4 {[%clk 0:01:42.2]} 42. Kf1 {[%clk 0:00:16.7]} 42... a5
{[%clk 0:01:40.5]} 43. Kg2 {[%clk 0:00:17]} 43... Kf6 {[%clk 0:01:40.1]} 44. Kh3
{[%clk 0:00:13.3]} 44... Ke6 {[%clk 0:01:39.5]} 45. Rg2 {[%clk 0:00:12.3]} 45...
Bf4 {[%clk 0:01:38]} 46. Rg6+ {[%clk 0:00:10.4]} 46... Kd5 {[%clk 0:01:37.8]}
47. Bxf5 {[%clk 0:00:09.4]} 47... Rxf3+ {[%clk 0:01:38.2]} 48. Kg2 {[%clk
0:00:09.8]} 48... e4 {[%clk 0:01:33.5]} 49. Rg8 {[%clk 0:00:09.4]} 49... Re3
{[%clk 0:01:25.5]} 50. Rd8+ {[%clk 0:00:08.4]} 50... Ke5 {[%clk 0:01:24.9]} 51.
Bh7 {[%clk 0:00:08]} 51... Re2+ {[%clk 0:01:25]} 52. Kf1 {[%clk 0:00:07.9]}
52... Re3 {[%clk 0:01:20.5]} 53. Re8+ {[%clk 0:00:08.4]} 53... Kd4 {[%clk
0:01:20.7]} 54. Rf8 {[%clk 0:00:08.2]} 54... Bg3 {[%clk 0:01:20]} 55. Kg2 {[%clk
0:00:07.2]} 55... Bxh4 {[%clk 0:01:20.2]} 56. Rd8+ {[%clk 0:00:06.4]} 56... Kc3
{[%clk 0:01:20.2]} 57. Ra8 {[%clk 0:00:06]} 57... Re2+ {[%clk 0:01:18]} 58. Kh3
{[%clk 0:00:06.3]} 58... Bg5 {[%clk 0:01:18.1]} 59. Rxa5 {[%clk 0:00:03.8]}
59... e3 {[%clk 0:01:18.5]} 60. Kg4 {[%clk 0:00:03.4]} 60... Rg2+ {[%clk
0:01:18.2]} 61. Kf3 {[%clk 0:00:02.2]} 61... Rf2+ {[%clk 0:01:18.5]} 62. Kg3
{[%clk 0:00:02.9]} 62... Bf4+ {[%clk 0:01:18.4]} 63. Kg4 {[%clk 0:00:02.6]}
63... e2 {[%clk 0:01:18.6]} 64. Rc5+ {[%clk 0:00:03.1]} 64... Kb2 {[%clk
0:01:17.9]} 0-1